bitfinex-derivatives/quotes_ETHF0:USTF0_20241008
["timestamp","ask_amount","ask_price","bid_price","bid_amount"]
[1728351868950,0.41007,2439.2,2439.1,0.096]
[1728351869255,0.41011,2439.0,2438.8,0.41012]
[1728351869559,0.79702,2438.9,2438.8,0.41012]
[1728351869749,0.79702,2438.9,2438.7,1.20784]
[1728351870056,0.41014,2438.8,2438.7,0.41015]
[1728351870453,0.79703,2438.9,2438.7,0.41014]
[1728351870748,0.79703,2438.9,2438.8,0.41014]
[1728351871152,0.3869,2438.9,2438.8,0.41014]
[1728351872063,0.83639,2439.1,2438.6,3.2]
[1728351872064,0.4263,2439.1,2438.6,3.2]
[1728351872247,0.4263,2439.1,2439.0,0.4101]
[1728351873054,0.83639,2439.1,2438.9,0.7971]
[1728351874052,0.4263,2439.1,2438.9,0.387]
[1728351874552,0.4263,2439.1,2438.9,0.79711]
[1728351875053,0.4263,2439.1,2438.9,0.387]
[1728351875259,0.4263,2439.1,2439.0,0.4101]
[1728351880460,0.4263,2439.1,2438.9,0.79711]
[1728351880963,0.83639,2439.1,2438.9,0.79711]
[1728351881260,0.83639,2439.1,2438.9,0.387]
[1728351881450,0.4101,2439.0,2438.9,0.387]
[1728351881654,0.8364,2439.1,2438.9,0.387]
[1728351881858,0.8364,2439.1,2438.9,0.79711]
[1728351883956,3.6341,2439.1,2438.9,0.387]
[1728351884163,4.04419,2439.1,2438.9,0.79711]
[1728351884956,4.04419,2439.1,2438.9,0.387]
[1728351885152,4.04419,2439.1,2438.9,0.79711]
[1728351888865,3.6341,2439.1,2438.9,0.387]
[1728351889064,0.4101,2439.0,2438.9,0.387]
[1728351889758,4.0442,2439.1,2438.9,0.79711]
[1728351891866,3.6341,2439.1,2438.9,0.79711]
[1728351892070,0.4101,2439.0,2438.9,0.79711]
[1728351892269,3.6341,2439.1,2438.9,0.79711]
[1728351892270,4.0442,2439.1,2438.9,0.79711]
[1728351895266,3.6341,2439.1,2438.5,3.6227]
[1728351895469,0.41012,2438.9,2438.7,0.41014]
[1728351898173,0.41015,2438.7,2438.6,0.3903]
[1728351899069,0.41015,2438.7,2438.6,0.80047]
[1728351899968,0.41015,2438.7,2438.6,0.3903]
[1728351900167,0.41015,2438.7,2438.6,0.80047]
[1728351900369,0.41015,2438.7,2438.6,0.3903]
[1728351900573,0.41015,2438.7,2438.6,0.80047]
[1728351901072,4.4411,2438.8,2438.7,0.41015]
[1728351901073,3.2078,2438.8,2438.7,0.41015]
[1728351901579,3.61794,2438.8,2438.7,0.41015]
[1728351903181,3.2078,2438.8,2438.6,1.8703]
[1728351903374,0.41019,2438.5,2438.4,3.61799]
[1728351903580,0.3945,2438.7,2438.4,0.41019]
[1728351903765,0.41019,2438.5,2438.4,0.41019]
[1728351904176,1.8745,2438.7,2438.3,1.1925]
[1728351904373,1.8745,2438.7,2438.3,0.4008]
[1728351904374,0.8047,2438.4,2438.3,0.4008]
[1728351904575,0.8047,2438.4,2438.3,0.81102]
[1728351905471,0.3945,2438.4,2437.9,0.8091]
[1728351905675,0.3945,2438.4,2438.2,0.41022]
[1728351905676,0.41023,2438.3,2438.2,0.41022]
[1728351905882,0.80471,2438.4,2438.3,0.41022]
[1728351906081,0.3945,2438.4,2438.3,1.89022]
[1728351906372,3.2078,2438.5,2438.4,0.4102]
[1728351906577,3.2078,2438.5,2438.4,1.2246]
[1728351906784,3.61799,2438.5,2438.4,1.6141]
[1728351907075,3.2078,2438.5,2438.4,1.6141]
[1728351907982,3.61799,2438.5,2438.4,1.6141]
[1728351908474,3.2078,2438.5,2438.4,1.6141]
[1728351908675,3.61799,2438.5,2438.4,1.6141]
[1728351909576,3.2078,2438.5,2438.1,3.2]
[1728351909785,0.41023,2438.3,2438.2,0.4054]
[1728351912091,0.41023,2438.3,2438.2,0.81564]
[1728351912274,0.41023,2438.3,2438.2,0.4054]
[1728351912890,0.41023,2438.3,2438.2,0.81564]
[1728351913180,1.22271,2438.4,2438.3,0.41022]
[1728351914884,3.2078,2440.0,2438.4,4.1008]
[1728351915082,0.4198,2439.5,2439.1,3.2]
[1728351915395,0.41002,2439.5,2439.3,0.41005]
[1728351915679,0.82981,2439.6,2439.3,0.41005]
[1728351915879,0.82981,2439.6,2439.2,8.19281387]
[1728351915880,0.4198,2439.6,2439.2,8.19281387]
[1728351916089,0.82981,2439.6,2439.3,0.41004]
[1728351916284,0.82981,2439.6,2439.4,0.41003]
[1728351916882,0.4198,2439.6,2439.4,0.41003]
[1728351918176,0.4198,2439.6,2439.2,8.19281387]
[1728351918382,0.4198,2439.6,2439.5,0.41002]
[1728351918579,6.4078,2440.0,2439.5,0.41002]
[1728351918580,3.2078,2440.0,2439.5,6.4078]
[1728351918776,3.2078,2440.0,2439.2,4.98501387]
[1728351918777,0.40994,2440.0,2439.7,0.40997]
[1728351918981,0.8116,2440.1,2439.7,0.40997]
[1728351919186,0.8116,2440.1,2439.7,0.40998]
[1728351919386,0.40996,2439.9,2439.7,0.40998]
[1728351919784,0.4276,2439.8,2439.7,0.40998]
[1728351920779,0.4276,2439.8,2439.6,0.425]
[1728351920984,4.03758,2439.8,2439.5,3.61782]
[1728351921193,0.40999,2439.7,2439.4,0.41003]
[1728351921488,0.4029,2439.6,2439.4,0.41003]
[1728351921688,0.4029,2439.6,2439.4,0.41002]
[1728351922494,0.4029,2439.6,2439.2,3.6072]
[1728351922687,0.41002,2439.5,2439.3,0.41004]
[1728351923187,0.40997,2439.8,2439.6,0.40999]
[1728351924196,0.40996,2439.9,2439.7,0.40998]
[1728351924390,0.40996,2439.9,2439.6,0.40999]
[1728351924691,0.40999,2439.7,2439.5,0.41001]
[1728351925195,3.60998,2439.8,2439.5,0.41001]
[1728351925491,0.40998,2439.8,2439.5,0.41001]
[1728351925692,0.40998,2439.8,2439.2,3.6072]
[1728351925894,0.40998,2439.8,2439.6,0.41]
[1728351926480,4.0144,2440.0,2439.2,3.6072]
[1728351926685,0.40999,2439.7,2439.5,0.41001]
[1728351926892,3.2,2439.8,2439.2,3.6072]
[1728351927292,0.41005,2439.3,2439.1,0.4095]
[1728351927591,0.3981,2439.2,2439.1,0.41008]
[1728351927785,0.8056,2439.2,2439.1,0.41008]
[1728351927987,0.8056,2439.2,2438.9,3.2078]
[1728351928188,0.8056,2439.2,2438.7,3.2]
[1728351928189,0.8056,2439.2,2439.0,0.41009]
[1728351928384,0.8056,2439.2,2439.1,0.41009]
[1728351928587,0.8056,2439.2,2438.9,3.2078]
[1728351928892,1.21568,2439.2,2439.0,0.41009]
[1728351929193,0.41009,2439.1,2438.9,3.61791]
[1728351929693,0.4101,2439.0,2438.9,3.2078]
[1728351930078,4.0056,2439.2,2438.7,0.82984]
[1728351930293,4.0056,2439.2,2438.6,3.6128]
[1728351930486,0.41015,2438.8,2438.6,0.81516]
[1728351930886,4.0056,2439.2,2438.6,0.405]
[1728351931095,0.41011,2439.0,2438.8,0.41012]
[1728351932285,0.41011,2439.0,2438.6,0.405]
[1728351932490,0.41009,2439.1,2438.9,0.41011]
[1728351932691,0.41009,2439.1,2438.9,0.79571]
[1728351933699,0.4101,2439.0,2438.9,0.3856]
[1728351933895,0.41012,2438.9,2438.8,3.2078]
[1728351934296,0.8056,2439.2,2438.8,3.2078]
[1728351934497,0.41011,2439.0,2438.8,3.2078]
[1728351934892,0.8056,2439.2,2438.8,3.2078]
[1728351935097,0.41012,2438.9,2438.8,3.2078]
[1728351935299,1.8308,2439.2,2438.8,3.2078]
[1728351935601,0.41011,2439.0,2438.8,3.61793]
[1728351935802,0.41012,2438.9,2438.8,3.2078]
[1728351938591,0.41011,2439.0,2438.8,3.2078]
[1728351938792,0.41012,2438.9,2438.8,3.2078]
[1728351945094,0.41011,2439.0,2438.8,3.61793]
[1728351945403,0.41012,2438.9,2438.8,3.2078]
[1728351946297,0.41015,2438.7,2438.6,1.20076]
[1728351948201,1.42599,2439.0,2438.6,0.7906]
[1728351948509,0.41015,2438.7,2438.6,1.20076]
[1728351949503,1.02539,2438.7,2438.4,0.8066]
[1728351949701,0.8134,2438.6,2438.4,0.8005]
[1728351949902,1.1996,2438.6,2438.4,0.8005]
[1728351950210,0.41019,2438.5,2438.4,0.8005]
[1728351950404,0.41019,2438.5,2438.4,0.3903]
[1728351951206,1.60978,2438.6,2438.4,0.8005]
[1728351951604,0.41019,2438.5,2438.4,0.8005]
[1728351952203,0.3863,2438.6,2438.5,0.41019]
[1728351952405,1.18254278,2439.1,2438.6,0.41016]
[1728351952406,0.41016,2438.7,2438.6,0.41016]
[1728351953204,5.48729,2439.0,2438.4,0.3903]
[1728351953399,0.41017,2438.6,2438.5,0.41019]
[1728351953607,5.48729,2439.0,2438.4,0.3903]
[1728351953608,4.462,2439.0,2438.4,0.3903]
[1728351953905,4.462,2439.0,2438.6,0.41016]
[1728351953906,0.41015,2438.8,2438.6,0.41016]
[1728351954105,5.48728,2439.0,2438.6,0.83456]
[1728351954313,0.41013,2438.9,2438.7,0.41014]
[1728351954504,0.41013,2438.9,2438.7,0.81554]
[1728351954705,0.41013,2438.9,2438.8,0.3967]
[1728351957510,4.462,2439.0,2438.6,0.4244]
[1728351957511,0.41015,2438.7,2438.6,0.4244]
[1728351957711,0.41015,2438.7,2438.6,0.8258]
[1728351958615,0.41015,2438.7,2438.6,1.23597]
[1728351959413,0.41015,2438.7,2438.6,0.8258]
[1728351960717,5.48729,2439.0,2438.6,1.23597]
[1728351960918,0.41015,2438.8,2438.6,1.23597]
[1728351961218,5.48729,2439.0,2438.6,1.23597]
[1728351961518,0.41015,2438.8,2438.6,1.23597]
[1728351961905,0.41015,2438.8,2438.6,0.8258]
[1728351962103,0.41015,2438.8,2438.6,1.23596]
[1728351963217,5.48729,2439.0,2438.8,0.41013]
[1728351963218,1.67211,2439.0,2438.8,0.41013]
[1728351963516,0.41012,2438.9,2438.8,3.61793]
[1728351964420,0.41012,2438.9,2438.8,3.2078]
[1728351964611,0.41014,2438.8,2438.6,1.23596]
[1728351964915,0.41017,2438.6,2438.5,3.2078]
[1728351965511,0.80627,2438.6,2438.5,3.61799]
[1728351965713,0.3961,2438.6,2438.5,3.2078]
[1728351966021,0.3961,2438.6,2438.5,3.61799]
[1728351966515,0.80627,2438.6,2438.5,3.61799]
[1728351967708,0.7928,2438.6,2438.5,3.61799]
[1728351968318,1.20297,2438.6,2438.5,3.61799]
[1728351968521,0.80627,2438.6,2438.5,3.61799]
[1728351968930,0.3961,2438.6,2438.5,3.61799]
[1728351969216,0.80416,2438.7,2438.6,0.41017]
[1728351970416,0.394,2438.7,2438.6,0.41017]
[1728351970622,0.41017,2438.6,2438.5,3.61798]
[1728351970811,0.80467,2438.6,2438.5,3.61798]
[1728351972822,0.3945,2438.6,2438.5,3.61798]
[1728351973519,0.80467,2438.6,2438.5,3.61798]
[1728351974121,0.3945,2438.6,2438.5,3.61798]
[1728351975525,0.80467,2438.6,2438.5,3.61798]
[1728351975731,0.3945,2438.6,2438.5,3.61798]
[1728351975918,0.80415,2438.7,2438.6,0.41017]
[1728351975919,0.394,2438.7,2438.6,0.41017]
[1728351976225,0.80415,2438.7,2438.6,0.41017]
[1728351976616,0.394,2438.7,2438.6,0.41017]
[1728351976827,3.2078,2439.1,2439.0,0.4101]
[1728351977020,0.4165,2439.1,2439.0,0.4101]
[1728351977219,0.4165,2439.1,2438.9,3.2078]
[1728351977220,0.41011,2439.0,2438.9,0.41011]
[1728351977418,0.41012,2438.9,2438.8,1.23633]
[1728351978120,0.41012,2438.9,2438.8,0.8262]
[1728351978740,0.41012,2438.9,2438.8,1.23634]
[1728351982929,1.48,2438.9,2438.6,3.6324]
[1728351983132,1.89015,2438.7,2438.6,3.2078]
[1728351983729,0.41015,2438.7,2438.6,3.61797]
[1728351984037,0.41015,2438.7,2438.6,3.2078]
[1728351988135,0.41018,2438.6,2438.4,0.8173]
[1728351988339,0.41018,2438.6,2438.5,0.41019]
[1728351988539,3.72116,2438.8,2438.5,0.41019]
[1728351988736,0.41016,2438.7,2438.4,0.8173]
[1728351989039,0.41017,2438.6,2438.5,0.41017]
[1728351989937,1.62594,2438.8,2438.7,0.41015]
[1728351990435,1.21294,2438.8,2438.7,0.41015]
[1728351990632,1.02514,2439.3,2438.7,0.4205]
[1728351990937,0.41012,2438.9,2438.8,0.82882]
[1728351991243,0.4008,2439.1,2439.0,0.4101]
[1728351991537,0.80588,2439.2,2439.0,3.6179]
[1728351991729,0.3958,2439.2,2439.0,3.2078]
[1728351991933,0.80587,2439.2,2439.1,0.4205]
[1728351996241,0.80587,2439.2,2439.1,0.83059]
[1728351997435,0.80587,2439.2,2439.1,0.4205]
[1728351997840,0.80587,2439.2,2439.1,0.83059]
[1728351998242,0.41007,2439.2,2439.1,0.83059]
[1728351998431,0.4023,2439.5,2439.1,0.4205]
[1728351998637,1.20572,2439.5,2439.3,0.41004]
[1728351998936,1.20573,2439.5,2439.3,0.41004]
[1728351999145,1.20573,2439.5,2439.4,0.3994]
[1728352000547,0.41002,2439.5,2439.4,0.80943]
[1728352000940,0.4272,2439.7,2439.4,0.3994]
[1728352001140,0.41001,2439.6,2439.5,0.41002]
[1728352001538,0.41001,2439.6,2439.4,0.3994]
[1728352001539,0.41002,2439.5,2439.4,0.80942]
[1728352001846,0.41001,2439.6,2439.4,0.80942]
[1728352002238,0.4272,2439.7,2439.5,0.80061]
[1728352002544,0.41,2439.6,2439.5,0.3906]
[1728352002745,3.2078,2439.8,2439.5,0.3906]
[1728352002939,0.40999,2439.7,2439.6,0.41]
[1728352003448,0.41,2439.7,2439.5,0.3906]
[1728352003747,0.41,2439.7,2439.6,0.41]
[1728352004644,0.41,2439.7,2439.5,0.3906]
[1728352004645,0.41,2439.6,2439.5,0.80061]
[1728352005842,0.41,2439.6,2439.5,0.3906]
[1728352006050,0.41002,2439.5,2439.4,0.80943]
[1728352006245,0.41002,2439.5,2439.4,1.21183]
[1728352006549,0.41002,2439.5,2439.4,4.901]
[1728352006744,0.41002,2439.5,2439.4,5.31103]
[1728352007645,0.41002,2439.5,2439.4,1.21183]
[1728352007949,0.41002,2439.5,2439.4,5.31103]
[1728352008448,0.15525698,2440.1,2439.5,1.02505]
[1728352008449,3.2078,2440.1,2439.5,1.02505]
[1728352008759,0.40992,2440.1,2440.0,0.40993]
[1728352009243,0.4099,2440.3,2440.0,2.2877]
[1728352009547,0.40987,2440.4,2440.3,0.40988]
[1728352010155,0.40987,2440.4,2440.2,1.48]
[1728352010156,0.4183,2440.6,2440.2,1.48]
[1728352010446,0.4183,2440.6,2440.4,0.40985]
[1728352010447,0.40984,2440.6,2440.4,0.40985]
[1728352010646,0.40984,2440.6,2440.5,0.4083]
[1728352010846,3.6122,2440.7,2440.5,0.4083]
[1728352011153,0.3861,2441.2,2440.6,3.2078]
[1728352011339,0.40977,2441.0,2440.6,3.2078]
[1728352011541,1.0243,2441.3,2441.1,0.40974]
[1728352011542,0.40972,2441.3,2441.1,0.40974]
[1728352011847,0.4097,2441.4,2441.2,6.8161]
[1728352012047,1.02409,2441.8,2441.2,11.28502703]
[1728352012248,0.40967,2441.6,2441.3,0.40971]
[1728352012446,0.40969,2441.5,2441.2,8.57482]
[1728352012657,0.40967,2441.6,2441.3,0.40971]
[1728352012945,0.40966,2441.7,2441.4,0.4097]
[1728352013354,0.40966,2441.7,2441.3,0.4097]
[1728352013546,3.2,2441.9,2441.3,0.4097]
[1728352013752,0.40969,2441.5,2441.2,7.22583]
[1728352013952,3.2,2441.5,2441.0,1.348]
[1728352014147,0.40974,2441.2,2440.9,3.613]
[1728352014350,0.4258,2441.4,2440.9,4.02278]
[1728352014650,0.40975,2441.1,2440.9,3.613]
[1728352015439,0.40975,2441.1,2440.9,4.02278]
[1728352015644,0.4089,2441.0,2440.9,3.2078]
[1728352016246,0.81867,2441.0,2440.9,3.2078]
[1728352017342,0.4089,2441.0,2440.9,3.2078]
[1728352017947,0.81867,2441.0,2440.9,3.2078]
[1728352018454,0.81722,2441.3,2440.9,3.61758]
[1728352018651,0.3923,2441.2,2441.1,0.40974]
[1728352019854,0.3923,2441.2,2440.9,3.2078]
[1728352020355,0.3923,2441.2,2441.0,0.40975]
[1728352020552,0.4097,2441.5,2441.0,3.2]
[1728352020855,0.3923,2441.5,2441.2,3.2078]
[1728352021246,0.3923,2441.5,2441.4,0.4097]
[1728352022261,0.3923,2441.5,2441.3,0.4097]
[1728352022647,6.8099,2441.9,2441.2,3.2078]
[1728352022847,0.3943,2441.8,2441.2,3.2078]
[1728352023049,0.40969,2441.5,2441.3,0.40971]
[1728352023249,0.40965,2441.7,2441.4,0.40969]
[1728352023449,0.40967,2441.6,2441.2,6.4078]
[1728352023649,0.40967,2441.6,2441.3,0.40972]
[1728352023851,0.40967,2441.6,2441.2,6.4078]
[1728352024149,0.40965,2441.7,2441.5,0.40968]
[1728352024743,0.40967,2441.6,2441.3,0.4097]
[1728352025150,0.3943,2441.8,2441.2,6.4078]
[1728352025352,0.40969,2441.5,2441.2,6.81752]
[1728352025551,0.4099,2441.4,2441.2,6.4078]
[1728352025856,0.4099,2441.4,2441.3,0.40972]
[1728352026149,0.40967,2441.7,2441.4,0.40969]
[1728352026352,0.40968,2441.6,2441.4,0.40969]
[1728352026555,0.4099,2441.8,2441.3,4.28830528]
[1728352026556,0.40969,2441.5,2441.3,0.40971]
[1728352026858,0.4099,2441.8,2441.2,3.2078]
[1728352026859,3.2,2441.6,2441.2,3.2078]
[1728352027155,0.40972,2441.3,2441.2,3.2078]
[1728352029053,1.0242,2441.6,2441.2,3.2078]
[1728352029254,0.40972,2441.3,2441.2,3.2078]
[1728352029458,0.40972,2441.3,2440.8,0.096]
[1728352029459,1.02434,2441.2,2440.8,0.096]
[1728352029657,0.40982,2440.7,2440.6,3.2078]
[1728352030356,3.60982,2440.7,2440.6,3.2078]
[1728352031652,7.70742,2440.7,2440.6,3.2078]
[1728352032655,4.50742,2440.7,2440.6,3.2078]
[1728352032858,0.40981,2440.8,2440.6,3.61763]
[1728352033059,0.40979,2440.9,2440.7,0.40981]
[1728352035367,0.40978,2440.9,2440.7,0.40981]
[1728352035762,0.3868,2441.1,2440.6,6.4078]
[1728352036066,0.40979,2440.9,2440.7,0.40981]
[1728352036462,0.3868,2441.1,2440.6,6.4078]
[1728352036759,44.0,2441.1,2440.6,3.2078]
[1728352036963,0.40979,2440.9,2440.7,0.40981]
[1728352037262,1.43407,2441.2,2440.7,0.40981]
[1728352037466,1.41254,2441.2,2440.8,0.3989]
[1728352037665,0.40978,2441.0,2440.8,0.3989]
[1728352037964,0.40978,2440.9,2440.8,0.3989]
[1728352038258,1.41254,2441.2,2440.8,0.3989]
[1728352038460,0.40978,2440.9,2440.8,0.3989]
[1728352039366,1.02438,2441.1,2440.7,0.40981]
[1728352039568,0.40979,2440.9,2440.7,0.40981]
[1728352040862,40.8,2441.4,2440.7,3.2]
[1728352041064,40.8,2441.4,2440.9,3.61758]
[1728352041065,0.40975,2441.1,2440.9,3.61758]
[1728352041268,0.4144,2441.3,2440.9,3.2078]
[1728352041466,0.40977,2441.0,2440.9,3.2078]
[1728352043355,0.40977,2441.0,2440.9,3.61758]
[1728352043862,0.40974,2441.2,2441.1,0.40975]
[1728352044067,0.4144,2441.3,2441.0,0.3855]
[1728352044256,0.40974,2441.2,2441.0,0.3855]
[1728352044561,0.40975,2441.1,2441.0,0.79525]
[1728352044767,0.4144,2441.3,2441.0,0.79525]
[1728352044970,0.40974,2441.2,2441.0,0.79525]
[1728352046280,0.40974,2441.2,2441.0,0.3855]
[1728352046466,0.40974,2441.2,2441.1,0.40975]
[1728352047374,0.40974,2441.2,2441.0,0.79526]
[1728352047765,0.4144,2441.3,2441.0,0.3855]
[1728352048173,0.40975,2441.1,2440.9,3.61757]
[1728352048370,0.40977,2441.0,2440.9,3.61757]
[1728352048674,1.43871,2441.3,2440.9,3.61757]
[1728352048675,0.40975,2441.1,2440.9,3.61757]
[1728352049062,0.40975,2441.1,2441.0,0.40977]
[1728352049269,0.40974,2441.2,2440.9,3.2078]
[1728352049470,0.40974,2441.2,2441.1,0.40975]
[1728352049770,0.40973,2441.2,2441.1,0.40975]
[1728352050174,0.82412,2441.3,2441.1,0.40973]
[1728352050872,0.82412,2441.3,2441.2,0.40973]
[1728352051072,0.4144,2441.3,2441.2,0.40973]
[1728352051272,0.82412,2441.3,2441.2,0.40973]
[1728352051471,0.82413,2441.3,2441.1,0.40974]
[1728352051661,0.40973,2441.2,2441.1,0.40974]
[1728352051865,0.4144,2441.3,2441.1,0.40974]
[1728352052060,0.82412,2441.3,2441.1,0.40974]
[1728352052867,0.82412,2441.3,2441.2,0.4225]
[1728352053067,0.82412,2441.3,2441.2,0.83223]
[1728352053470,0.82412,2441.3,2441.2,0.4225]
[1728352053669,0.82412,2441.3,2441.2,0.83223]
[1728352053868,0.82412,2441.3,2441.2,0.4225]
[1728352055275,0.82412,2441.3,2441.2,0.83223]
[1728352055580,0.82412,2441.3,2441.2,0.4225]
[1728352055966,0.82412,2441.3,2441.2,0.83223]
[1728352056170,0.82412,2441.3,2441.2,0.4225]
[1728352056974,0.82412,2441.3,2441.2,0.83223]
[1728352057279,0.82412,2441.3,2441.2,0.4225]
[1728352057678,0.82412,2441.3,2441.2,0.83223]
[1728352058582,0.82412,2441.3,2441.2,0.4225]
[1728352058784,0.40973,2441.2,2441.1,0.40975]
[1728352059275,0.82413,2441.3,2441.1,0.40974]
[1728352060274,0.82413,2441.3,2441.1,0.40973]
[1728352060481,0.82413,2441.3,2441.2,0.40973]
[1728352061578,0.82413,2441.3,2441.1,0.40974]
[1728352061779,0.82413,2441.3,2441.2,0.40973]
[1728352061979,0.4144,2441.3,2441.0,0.4078]
[1728352062178,0.82413,2441.3,2441.1,0.40975]
[1728352062373,0.82413,2441.3,2441.1,0.40974]
[1728352063386,0.82412,2441.3,2441.2,0.40973]
[1728352063683,0.40974,2441.2,2441.1,0.40975]
[1728352064284,0.82413,2441.3,2441.1,0.40974]
[1728352064585,0.82412,2441.3,2441.2,0.40973]
[1728352065380,0.4144,2441.3,2441.2,0.40973]
[1728352065777,0.82412,2441.3,2441.2,0.40973]
[1728352066383,0.82412,2441.3,2441.1,0.40974]
[1728352066583,0.40973,2441.2,2441.1,0.40974]
[1728352066780,0.40973,2441.2,2441.0,0.4078]
[1728352066781,0.4144,2441.3,2441.2,0.40973]
[1728352067690,0.4144,2441.3,2441.0,0.4078]
[1728352067985,0.82413,2441.3,2441.2,0.40973]
[1728352069985,0.4144,2441.3,2441.0,0.4078]
[1728352070279,0.40974,2441.2,2441.0,0.4078]
[1728352070478,0.40974,2441.2,2441.1,0.40975]
[1728352070683,0.40975,2441.1,2441.0,0.81755]
[1728352070883,0.40974,2441.2,2441.0,0.81755]
[1728352071390,0.40974,2441.2,2441.0,0.4078]
[1728352071581,0.4144,2441.3,2440.8,0.40979]
[1728352071784,0.40975,2441.1,2440.8,0.80739]
[1728352071994,0.3964,2441.0,2440.8,0.3976]
[1728352072190,0.80618,2441.0,2440.8,0.3976]
[1728352072483,0.80618,2441.0,2440.9,0.40978]
[1728352072686,0.40978,2440.9,2440.8,0.80739]
[1728352072884,0.82278,2440.9,2440.8,0.80739]
[1728352074488,0.82278,2440.9,2440.8,0.3976]
[1728352074793,7.7098,2440.9,2440.4,0.096]
[1728352074990,1.02451,2440.8,2440.4,0.3904]
[1728352075190,0.413,2440.9,2440.6,0.40983]
[1728352075497,0.40982,2440.7,2440.6,0.40983]
[1728352076086,0.40982,2440.7,2440.4,0.3904]
[1728352076294,0.40982,2440.7,2440.5,0.40984]
[1728352077391,0.40982,2440.7,2440.5,0.40985]
[1728352078090,0.413,2440.9,2440.5,0.40985]
[1728352078091,0.40983,2440.6,2440.5,0.40985]
[1728352078488,0.413,2440.9,2440.4,0.40986]
[1728352078692,0.4099,2440.3,2440.1,4.6069]
[1728352078992,0.4099,2440.3,2440.1,0.40991]
[1728352079699,0.4099,2440.3,2440.2,0.4099]
[1728352079997,0.40987,2440.4,2440.2,0.40989]
[1728352080288,0.40989,2440.3,2440.2,0.40989]
[1728352080490,0.40992,2440.1,2440.0,3.6249]
[1728352080694,4.22473,2440.3,2439.8,0.4147]
[1728352080997,0.40995,2439.9,2439.8,0.4147]
[1728352082095,3.2078,2440.4,2439.8,4.5131]
[1728352082296,0.40989,2440.3,2440.2,0.4099]
[1728352082597,0.40989,2440.3,2440.1,0.40991]
[1728352083897,3.2078,2440.3,2439.9,3.592]
[1728352084092,0.4099,2440.2,2440.0,0.40992]
[1728352085395,0.40993,2440.0,2439.9,0.392]
[1728352085697,3.2078,2440.3,2439.8,0.4147]
[1728352085897,0.40993,2440.1,2440.0,0.40993]
[1728352086699,3.2078,2440.3,2439.9,0.4105]
[1728352086900,0.40993,2440.1,2439.9,0.82044]
[1728352087091,0.40993,2440.1,2440.0,0.40993]
[1728352087899,0.40993,2440.0,2439.9,0.4105]
[1728352088098,0.40995,2439.9,2439.8,0.82466]
[1728352088596,0.40994,2440.0,2439.9,0.40995]
[1728352088797,0.41001,2439.6,2439.4,3.61782]
[1728352089097,0.41002,2439.5,2439.4,3.2078]
[1728352089497,0.41002,2439.5,2439.4,7.307]
[1728352089795,0.41002,2439.5,2439.4,3.2078]
[1728352090001,0.41002,2439.5,2439.4,7.307]
[1728352090200,0.41002,2439.5,2439.4,3.2078]
[1728352090403,3.2,2439.7,2439.3,0.412]
[1728352090404,0.41003,2439.4,2439.3,0.412]
[1728352090593,0.41007,2439.2,2439.0,3.6179]
[1728352090794,0.41007,2439.2,2439.0,4.0251]
[1728352091201,0.4217,2439.4,2439.0,4.0251]
[1728352091400,0.41007,2439.2,2439.0,4.0251]
[1728352091703,0.41006,2439.3,2439.1,0.41009]
[1728352092100,0.83174,2439.4,2439.2,0.41006]
[1728352092300,0.40997,2439.8,2439.4,0.41002]
[1728352092603,0.40998,2439.8,2439.6,0.40999]
[1728352092902,0.40999,2439.7,2439.6,0.41]
[1728352093099,0.40999,2439.7,2439.4,0.3928]
[1728352093100,0.40999,2439.7,2439.5,0.3985]
[1728352093399,0.40999,2439.7,2439.6,0.41]
[1728352093596,0.40999,2439.7,2439.5,0.8085]
[1728352093796,0.40999,2439.7,2439.6,0.4222]
[1728352094002,0.40999,2439.7,2439.6,0.8322]
[1728352094405,0.40998,2439.8,2439.6,0.8322]
[1728352094595,0.40998,2439.7,2439.6,0.8322]
[1728352094903,0.40998,2439.7,2439.6,0.4222]
[1728352095801,3.6098,2440.0,2439.6,4.93139]
[1728352095999,0.40998,2439.7,2439.6,0.83219]
[1728352096399,0.40998,2439.7,2439.6,4.5214]
[1728352096703,0.40998,2439.7,2439.6,0.4222]
[1728352097100,0.40998,2439.7,2439.6,4.9314]
[1728352097500,0.40998,2439.7,2439.6,4.5214]
[1728352097699,0.40998,2439.7,2439.6,4.9314]
[1728352098203,0.40995,2439.9,2439.7,0.40997]
[1728352098402,3.2078,2440.0,2439.9,0.40995]
[1728352098599,3.2078,2440.0,2439.9,6.40995]
[1728352098904,3.2078,2440.0,2439.9,9.36489597]
[1728352099816,3.2078,2440.0,2439.6,0.4222]
[1728352099817,0.40998,2439.7,2439.6,0.4222]
[1728352100900,1.44928,2439.9,2439.2,0.3923]
[1728352100901,0.41005,2439.3,2439.2,0.3923]
[1728352101104,0.41005,2439.3,2439.2,0.4086]
[1728352101304,0.41005,2439.3,2439.2,4.5086]
[1728352104097,0.41004,2439.4,2439.2,4.91866]
[1728352104297,0.41004,2439.4,2439.2,0.81866]
[1728352104509,0.41005,2439.3,2439.2,0.4086]
[1728352105001,0.41003,2439.4,2439.2,4.91866]
[1728352105201,0.41003,2439.4,2439.3,0.41005]
[1728352105605,0.41003,2439.4,2439.3,4.0992]
[1728352105910,0.41003,2439.5,2439.3,4.50924]